bitfinex-derivatives/quotes_BNBF0:USTF0_20250630
["timestamp","ask_amount","ask_price","bid_price","bid_amount"]
[1751284135203,0.265799,655.07,654.17,1.12290106]
[1751284135405,0.265799,655.07,654.18,1.12290106]
[1751284135603,0.265799,655.07,654.19,1.12290106]
[1751284135803,0.265799,655.07,654.2,1.12290106]
[1751284136000,0.265799,655.07,654.21,1.12290106]
[1751284136203,0.265799,655.07,654.22,1.12290106]
[1751284136403,0.265799,655.07,654.23,1.12290106]
[1751284136603,0.265799,655.07,654.24,1.12290106]
[1751284136801,0.265799,655.07,654.25,1.12290106]
[1751284137104,3.8085453,655.22,654.26,1.12290106]
[1751284137300,3.8085453,655.22,654.27,1.12290106]
[1751284137604,3.8085453,655.21,654.28,1.12290106]
[1751284137904,3.8085453,655.21,654.29,1.12290106]
[1751284138104,3.8085453,655.2,654.3,1.12290106]
[1751284138401,3.8085453,655.2,654.31,1.12290106]
[1751284138598,3.8085453,655.2,654.32,1.12290106]
[1751284138802,3.8085453,655.2,654.33,1.12290106]
[1751284139003,3.8085453,655.2,654.34,1.12290106]
[1751284139204,3.8085453,655.2,654.25,1.615]
[1751284139404,3.8085453,655.2,654.26,1.1231757]
[1751284139700,3.8085453,655.2,654.27,1.1231757]
[1751284139898,3.8085453,655.2,654.28,1.1231757]
[1751284140104,3.8085453,655.2,654.29,1.1231757]
[1751284140299,3.8085453,655.2,654.3,1.1231757]
[1751284140503,3.8085453,655.2,654.31,1.1231757]
[1751284140701,3.8085453,655.2,654.32,1.1231757]
[1751284140899,3.8085453,655.2,654.33,1.1231757]
[1751284141203,3.8085453,655.2,654.34,1.1231757]
[1751284141404,3.8085453,655.2,654.25,1.615]
[1751284141600,0.26581017,654.99,654.26,1.1231657]
[1751284141804,0.26581017,654.99,654.27,1.1231657]
[1751284142005,0.26581017,654.99,654.28,1.1231657]
[1751284142206,0.26581017,654.99,654.29,1.1231657]
[1751284142403,0.26581017,654.99,654.3,1.1231657]
[1751284142605,0.26581017,654.99,654.31,1.1231657]
[1751284142903,0.26581017,654.99,654.32,1.1231657]
[1751284143103,0.26581017,654.99,654.33,1.1231657]
[1751284143302,0.26581017,654.99,654.34,1.1231657]
[1751284143506,0.26581017,654.99,654.35,1.1231657]
[1751284143706,0.26581017,654.99,654.25,1.615]
[1751284143906,0.26581017,654.99,654.26,1.1231618]
[1751284144107,0.26581017,654.99,654.27,1.1231618]
[1751284144307,0.26581017,654.99,654.28,1.1231618]
[1751284144508,0.26581017,654.99,654.29,1.1231618]
[1751284144708,0.26581017,654.99,654.3,1.1231618]
[1751284145009,0.26581017,654.99,654.31,1.1231618]
[1751284145208,0.26581017,654.99,654.32,1.1231618]
[1751284145404,0.26581017,654.99,654.33,1.1231618]
[1751284145608,0.26581017,654.99,654.34,1.1231618]
[1751284145806,0.26581017,654.99,654.25,1.615]
[1751284146107,0.26581017,654.99,654.26,1.123159]
[1751284146305,0.26581017,654.99,654.27,1.123159]
[1751284146509,0.26581017,654.99,654.28,1.123159]
[1751284146709,0.26581017,654.99,654.29,1.123159]
[1751284147005,0.26581017,654.99,654.3,1.123159]
[1751284147205,0.26581017,654.99,654.31,1.123159]
[1751284147407,0.26581017,654.99,654.32,1.123159]
[1751284147611,0.26581017,654.99,654.33,1.123159]
[1751284147811,0.26581017,654.99,654.34,1.123159]
[1751284148008,0.26581017,654.99,654.25,1.615]
[1751284148309,0.26581017,654.99,654.26,1.123158]
[1751284148508,0.26581017,654.99,654.27,1.123158]
[1751284148707,0.26581017,654.99,654.25,1.615]
[1751284148708,0.26581017,654.99,654.28,1.123158]
[1751284148908,0.26581017,654.99,654.29,1.123158]
[1751284149109,0.26581017,654.99,654.3,1.123158]
[1751284149308,0.26581017,654.99,654.31,1.123158]
[1751284149508,0.26581017,654.99,654.32,1.123158]
[1751284149708,0.26581017,654.99,654.33,1.123158]
[1751284149911,0.26581017,654.99,654.34,1.123158]
[1751284150210,0.26581017,654.99,654.25,1.615]
[1751284150409,0.26581017,654.99,654.26,1.1231574]
[1751284150612,0.26581017,654.99,654.27,1.1231574]
[1751284150909,0.26581017,654.99,654.28,1.1231574]
[1751284151109,0.26581017,654.99,654.29,1.1231574]
[1751284151409,0.26581017,654.99,654.3,1.1231574]
[1751284151608,0.26581017,654.99,654.31,1.1231574]
[1751284151812,0.26581017,654.99,654.32,1.1231574]
[1751284152012,0.26581017,654.99,654.33,1.1231574]
[1751284152210,0.26581017,654.99,654.34,1.1231574]
[1751284152410,0.26581017,654.99,654.25,1.615]
[1751284152611,0.26581017,654.99,654.26,1.1231587]
[1751284152910,0.26581017,654.99,654.27,1.1231587]
[1751284153110,0.26581017,654.99,654.28,1.1231587]
[1751284153311,0.26581017,654.99,654.29,1.1231587]
[1751284153509,0.26581017,654.99,654.25,1.615]
[1751284153510,0.26581017,654.99,654.3,1.1231587]
[1751284153710,0.26581017,654.99,654.31,1.1231587]
[1751284153912,0.26581017,654.99,654.32,1.1231587]
[1751284154112,0.26581017,654.99,654.33,1.1231587]
[1751284154318,0.26581017,654.99,654.34,1.1231587]
[1751284154514,0.26581017,654.99,654.25,1.615]
[1751284154715,0.26581017,654.99,654.26,1.1231616]
[1751284154920,0.26581017,654.99,654.27,1.1231616]
[1751284155119,0.26581017,654.99,654.28,1.1231616]
[1751284155420,0.26581017,654.99,654.29,1.1231616]
[1751284155619,0.26581017,654.99,654.3,1.1231616]
[1751284155816,0.26581017,654.99,654.31,1.1231616]
[1751284156115,0.26581017,654.99,654.32,1.1231616]
[1751284156414,0.26581017,654.99,654.33,1.1231616]
[1751284156615,0.26581017,654.99,654.34,1.1231616]
[1751284156819,0.26581017,654.99,654.25,1.615]
[1751284157016,0.26581017,654.99,654.26,1.1231652]
[1751284157220,0.26581017,654.99,654.27,1.1231652]
[1751284157420,0.26581017,654.99,654.28,1.1231652]
[1751284157719,0.26581017,654.99,654.29,1.1231652]
[1751284157920,0.26581017,654.99,654.3,1.1231652]
[1751284158116,0.26581017,654.99,654.31,1.1231652]
[1751284158320,0.26581017,654.99,654.32,1.1231652]
[1751284158517,0.26581017,654.99,654.33,1.1231652]
[1751284158815,0.26581017,654.99,654.34,1.1231652]
[1751284159014,0.26581017,654.99,654.25,1.615]
[1751284159220,0.26581017,654.99,654.26,1.1231703]
[1751284159417,0.26581017,654.99,654.27,1.1231703]
[1751284159618,0.26581017,654.99,654.28,1.1231703]
[1751284159816,0.26581017,654.99,654.29,1.1231703]
[1751284160020,0.26581017,654.99,654.3,1.1231703]
[1751284160221,0.26581017,654.99,654.31,1.1231703]
[1751284160419,0.26581017,654.99,654.32,1.1231703]
[1751284160617,0.26581017,654.99,654.33,1.1231703]
[1751284160818,0.26581017,654.99,654.34,1.1231703]
[1751284161024,0.26581017,654.99,654.25,1.615]
[1751284161224,0.26581017,654.99,654.26,1.12317847]
[1751284161522,0.26581017,654.99,654.27,1.12317847]
[1751284161721,0.26581017,654.99,654.28,1.12317847]
[1751284161918,0.26581017,654.99,654.29,1.12317847]
[1751284162120,0.26581017,654.99,654.3,1.12317847]
[1751284162324,0.26581017,654.99,654.31,1.12317847]
[1751284162523,0.26581017,654.99,654.32,1.12317847]
[1751284162721,0.26581017,654.99,654.33,1.12317847]
[1751284162924,0.26581017,654.99,654.34,1.12317847]
[1751284163125,0.26581017,654.99,654.25,1.615]
[1751284163426,0.26581017,654.99,654.26,1.12318873]
[1751284163626,0.26581017,654.99,654.27,1.12318873]
[1751284163928,0.26581017,654.99,654.28,1.12318873]
[1751284164123,0.26581017,654.99,654.29,1.12318873]
[1751284164327,0.26581017,654.99,654.25,1.615]
[1751284164328,0.26581017,654.99,654.3,1.12318873]
[1751284164626,0.26581017,654.99,654.31,1.12318873]
[1751284164824,0.26581017,654.99,654.32,1.12318873]
[1751284165027,0.26581017,654.99,654.33,1.12318873]
[1751284165326,0.26581017,654.99,654.34,1.12318873]
[1751284165523,0.26581017,654.99,654.25,1.615]
[1751284165727,0.26581017,654.99,654.26,1.1231987]
[1751284165924,0.26581017,654.99,654.27,1.1231987]
[1751284166128,0.26581017,654.99,654.28,1.1231987]
[1751284166328,0.26581017,654.99,654.29,1.1231987]
[1751284166624,0.26581017,654.99,654.3,1.1231987]
[1751284166828,0.26581017,654.99,654.31,1.1231987]
[1751284167124,0.26581017,654.99,654.32,1.1231987]
[1751284167423,0.26581017,654.99,654.33,1.1231987]
[1751284167625,0.26581017,654.99,654.34,1.1231987]
[1751284167928,0.26581017,654.99,654.25,1.615]
[1751284168224,0.26581017,654.99,654.26,1.1232104]
[1751284168426,0.26581017,654.99,654.27,1.1232104]
[1751284168624,0.26581017,654.99,654.28,1.1232104]
[1751284168928,0.26581017,654.99,654.29,1.1232104]
[1751284169123,0.26581017,654.99,654.3,1.1232104]
[1751284169328,0.26581017,654.99,654.31,1.1232104]
[1751284169528,0.26581017,654.99,654.32,1.1232104]
[1751284169825,0.26581017,654.99,654.33,1.1232104]
[1751284170024,0.26581017,654.99,654.34,1.1232104]
[1751284170228,0.26581017,654.99,654.25,1.615]
[1751284170527,0.26581017,654.99,654.26,1.1233049]
[1751284170728,0.26581017,654.99,654.27,1.1233049]
[1751284170925,0.26581017,654.99,654.28,1.1233049]
[1751284171124,0.26581017,654.99,654.29,1.1233049]
[1751284171324,0.26581017,654.99,654.3,1.1233049]
[1751284171523,0.26581017,654.99,654.31,1.1233049]
[1751284171726,0.26581017,654.99,654.32,1.1233049]
[1751284171925,0.26581017,654.99,654.33,1.1233049]
[1751284172225,0.26581017,654.99,654.34,1.1233049]
[1751284172525,0.26581017,654.99,654.35,1.1233049]
[1751284172726,0.26581017,654.99,654.25,1.615]
[1751284172929,0.26581017,654.99,654.26,1.123322]
[1751284173129,0.26581017,654.99,654.25,1.615]
[1751284173130,0.26581017,654.99,654.27,1.123322]
[1751284173429,0.26581017,654.99,654.28,1.123322]
[1751284173630,0.26581017,654.99,654.29,1.123322]
[1751284173830,0.26581017,654.99,654.3,1.123322]
[1751284174036,0.26581017,654.99,654.31,1.123322]
[1751284174332,0.26581017,654.99,654.32,1.123322]
[1751284174537,0.26581017,654.99,654.33,1.123322]
[1751284174833,0.26581017,654.99,654.34,1.123322]
[1751284175035,0.26581017,654.99,654.35,1.123322]
[1751284175236,0.26581017,654.99,654.25,1.615]
[1751284175437,0.26581017,654.99,654.26,1.1233536]
[1751284175636,0.26581017,654.99,654.27,1.1233536]
[1751284175936,0.26581017,654.99,654.28,1.1233536]
[1751284176134,0.26581017,654.99,654.29,1.1233536]
[1751284176337,0.26581017,654.99,654.3,1.1233536]
[1751284176537,0.26581017,654.99,654.31,1.1233536]
[1751284176737,0.26581017,654.99,654.32,1.1233536]
[1751284176935,0.26581017,654.99,654.33,1.1233536]
[1751284177139,0.26581017,654.99,654.34,1.1233536]
[1751284177434,0.26581017,654.99,654.35,1.1233536]
[1751284177639,0.26581017,654.99,654.25,1.615]
[1751284177938,0.26581017,654.99,654.26,1.12338]
[1751284178138,0.26581017,654.99,654.27,1.12338]
[1751284178335,0.26581017,654.99,654.28,1.12338]
[1751284178537,0.26581017,654.99,654.29,1.12338]
[1751284178838,0.26581017,654.99,654.3,1.12338]
[1751284179039,0.26581017,654.99,654.31,1.12338]
[1751284179236,0.26581017,654.99,654.32,1.12338]
[1751284179539,0.26581017,654.99,654.33,1.12338]
[1751284179739,0.26581017,654.99,654.34,1.12338]
[1751284179939,0.26581017,654.99,654.25,1.615]
[1751284179940,0.26581017,654.99,654.35,1.12338]
[1751284180136,0.26581017,654.99,654.25,1.615]
[1751284180433,0.26581017,654.99,654.26,1.1234335]
[1751284180637,0.26581017,654.99,654.27,1.1234335]
[1751284180934,0.26581017,654.99,654.28,1.1234335]
[1751284181136,0.26581017,654.99,654.29,1.1234335]
[1751284181335,0.26581017,654.99,654.3,1.1234335]
[1751284181633,0.26581017,654.99,654.31,1.1234335]
[1751284181936,0.26581017,654.99,654.32,1.1234335]
[1751284182136,0.26581017,654.99,654.33,1.1234335]
[1751284182341,0.26581017,654.99,654.34,1.1234335]
[1751284182539,0.26581017,654.99,654.35,1.1234335]
[1751284182840,0.26581017,654.99,654.09,1.1454359]
[1751284183038,0.26581017,654.99,654.1,1.1234923]
[1751284183243,0.26581017,654.99,654.11,1.1234923]
[1751284183542,0.26581017,654.99,654.12,1.1234923]
[1751284183744,0.26581017,654.99,654.13,1.1234923]
[1751284183938,0.26581017,654.99,654.14,1.1234923]
[1751284184144,0.26581017,654.99,654.15,1.1234923]
[1751284184341,0.26581017,654.99,654.16,1.1234923]
[1751284184640,0.26581017,654.99,654.17,1.1234923]
[1751284184844,0.26581017,654.99,654.18,1.1234923]
[1751284185044,0.26581017,654.99,654.19,1.1234923]
[1751284185342,0.26581017,654.99,654.2,2.9894923]
[1751284185540,0.26581017,654.99,654.21,1.1234923]
[1751284185744,0.26581017,654.99,654.22,1.1234923]
[1751284186043,0.26581017,654.99,654.23,1.1234923]
[1751284186339,0.26581017,654.99,654.24,1.1234923]
[1751284186540,0.26581017,654.99,654.25,1.1234923]
[1751284186744,0.26581017,654.99,654.26,1.1234923]
[1751284186941,0.26581017,654.99,654.27,1.1234923]
[1751284187141,0.26581017,654.99,654.28,1.1234923]
[1751284187340,0.26581017,654.99,654.29,1.1234923]
[1751284187543,0.26581017,654.99,654.3,1.1234923]
[1751284187745,0.26581017,654.99,654.31,1.1234923]
[1751284187942,0.26581017,654.99,654.32,1.1234923]
[1751284188144,0.26581017,654.99,654.33,1.1234923]
[1751284188344,0.26581017,654.99,654.34,1.1234923]
[1751284188543,0.26581017,654.99,654.35,1.1234923]
[1751284188742,0.26581017,654.99,654.2,1.866]
[1751284188947,0.26581017,654.99,654.21,1.1235237]
[1751284189248,0.26581017,654.99,654.22,1.1235237]
[1751284189445,0.26581017,654.99,654.23,1.1235237]
[1751284189744,0.26581017,654.99,654.24,1.1235237]
[1751284189943,0.26581017,654.99,654.25,1.1235237]
[1751284190147,0.26581017,654.99,654.26,1.1235237]
[1751284190345,0.26581017,654.99,654.27,1.1235237]
[1751284190543,0.26581017,654.99,654.28,1.1235237]
[1751284190747,0.26581017,654.99,654.29,1.1235237]
[1751284190943,0.26581017,654.99,654.3,1.1235237]
[1751284191149,0.26581017,654.99,654.31,1.1235237]
[1751284191348,0.26581017,654.99,654.32,1.1235237]
[1751284191546,0.26581017,654.99,654.33,1.1235237]
[1751284191746,0.26581017,654.99,654.34,1.1235237]
[1751284191945,0.26581017,654.99,654.35,1.1235237]
[1751284192145,0.26581017,654.99,654.2,1.866]
[1751284192346,0.26581017,654.99,654.21,1.1235725]
[1751284192544,0.26581017,654.99,654.22,1.1235725]
[1751284192745,0.26581017,654.99,654.23,1.1235725]
[1751284192947,0.26581017,654.99,654.24,1.1235725]
[1751284193147,0.26581017,654.99,654.25,1.1235725]
[1751284193448,0.26581017,654.99,654.26,1.1235725]
[1751284193647,0.26581017,654.99,654.27,1.1235725]
[1751284193850,0.26581017,654.99,654.28,1.1235725]
[1751284194046,0.26581017,654.99,654.29,1.1235725]
[1751284194249,0.26581017,654.99,654.3,1.1235725]
[1751284194449,0.26581017,654.99,654.31,1.1235725]
[1751284194750,0.26581017,654.99,654.32,1.1235725]
[1751284194951,0.26581017,654.99,654.33,1.1235725]
[1751284195151,0.26581017,654.99,654.34,1.1235725]
[1751284195353,0.26581017,654.99,654.35,1.1235725]
[1751284195552,0.26581017,654.99,654.2,1.866]
[1751284195747,0.26581017,654.99,654.21,1.1235719]
[1751284195950,0.26581017,654.99,654.22,1.1235719]
[1751284196150,0.26581017,654.99,654.23,1.1235719]
[1751284196346,0.26581017,654.99,654.24,1.1235719]
[1751284196548,0.26581017,654.99,654.25,1.1235719]
[1751284196751,0.26581017,654.99,654.26,1.1235719]
[1751284196950,0.26581017,654.99,654.27,1.1235719]
[1751284197250,0.26581017,654.99,654.28,1.1235719]
[1751284197452,0.26581017,654.99,654.29,1.1235719]
[1751284197648,0.26581017,654.99,654.3,1.1235719]
[1751284197852,0.26581017,654.99,654.31,1.1235719]
[1751284198048,0.26581017,654.99,654.32,1.1235719]
[1751284198348,0.26581017,654.99,654.33,1.1235719]
[1751284198549,0.26581017,654.99,654.34,1.1235719]
[1751284198753,0.26581017,654.99,654.35,1.1235719]
[1751284198950,0.26581017,654.99,654.2,1.866]
[1751284199153,0.26581017,654.99,654.21,1.1235354]
[1751284199354,0.26581017,654.99,654.22,1.1235354]
[1751284199555,0.26581017,654.99,654.23,1.1235354]
[1751284199755,0.26581017,654.99,654.24,1.1235354]
[1751284200055,0.26581017,654.99,654.25,1.1235354]
[1751284200357,0.26581017,654.99,654.26,1.1235354]
[1751284200655,0.26581017,654.99,654.27,1.1235354]
[1751284200855,0.26581017,654.99,654.28,1.1235354]
[1751284201054,0.26581017,654.99,654.29,1.1235354]
[1751284201355,0.26581017,654.99,654.3,1.1235354]
[1751284201555,0.26581017,654.99,654.31,1.1235354]
[1751284201752,0.26581017,654.99,654.32,1.1235354]
[1751284201950,0.26581017,654.99,654.33,1.1235354]
[1751284202152,0.26581017,654.99,654.34,1.1235354]
[1751284202354,0.26581017,654.99,654.21,1.1235354]
[1751284202552,0.26581017,654.99,654.22,1.1235354]
[1751284202850,0.26581017,654.99,654.23,1.1235354]
[1751284203056,0.26581017,654.99,654.24,1.1235354]
[1751284203254,0.26581017,654.99,654.25,1.1235354]
[1751284203456,0.26581017,654.99,654.26,1.1235354]
[1751284203656,0.26581017,654.99,654.27,1.1235354]
[1751284203956,0.26581017,654.99,654.28,1.1235354]
[1751284204152,0.26581017,654.99,654.29,1.1235354]
[1751284204456,0.26581017,654.99,654.3,1.1235354]
[1751284204653,0.26581017,654.99,654.31,1.1235354]
[1751284204858,0.26581017,654.99,654.32,1.1235354]
[1751284205055,0.26581017,654.99,654.33,1.1235354]
[1751284205356,0.26581017,654.99,654.34,1.1235354]
[1751284205652,0.26581017,654.99,654.35,1.1235354]
[1751284205852,0.26581017,654.99,654.2,1.866]
[1751284206051,0.26581017,654.99,654.21,1.12353516]
[1751284206253,0.26581017,654.99,654.22,1.12353516]
[1751284206455,0.26581017,654.99,654.23,1.12353516]
[1751284206652,0.26581017,654.99,654.24,1.12353516]
[1751284206954,0.26581017,654.99,654.25,1.12353516]
[1751284207152,0.26581017,654.99,654.26,1.12353516]
[1751284207355,0.26581017,654.99,654.27,1.12353516]
[1751284207555,0.26581017,654.99,654.2,1.866]
[1751284207556,0.26581017,654.99,654.28,1.12353516]
[1751284207855,0.26581017,654.99,654.29,1.12353516]
[1751284208053,0.26581017,654.99,654.3,1.12353516]
[1751284208251,0.26581017,654.99,654.31,1.12353516]
[1751284208451,0.26581017,654.99,654.32,1.12353516]
[1751284208656,0.26581017,654.99,654.33,1.12353516]
[1751284208852,0.26581017,654.99,654.34,1.12353516]
[1751284209055,0.26581017,654.99,654.35,1.12353516]
[1751284209258,0.26581017,654.99,654.2,1.866]
[1751284209458,0.26581017,654.99,654.21,1.12353589]
[1751284209659,0.26581017,654.99,654.22,1.12353589]
[1751284209956,0.26581017,654.99,654.23,1.12353589]
[1751284210157,0.26581017,654.99,654.24,1.12353589]
[1751284210463,0.26581017,654.99,654.25,1.12353589]
[1751284210757,0.26581017,654.99,654.26,1.12353589]
[1751284211060,0.26581017,654.99,654.27,1.12353589]
[1751284211262,0.26581017,654.99,654.28,1.12353589]
[1751284211458,0.26581017,654.99,654.29,1.12353589]
[1751284211662,0.26581017,654.99,654.3,1.12353589]
[1751284211859,0.26581017,654.99,654.31,1.12353589]
[1751284212058,0.26581017,654.99,654.32,1.12353589]
[1751284212263,0.26581017,654.99,654.33,1.12353589]
[1751284212560,0.26581017,654.99,654.34,1.12353589]
[1751284212761,0.26581017,654.99,654.35,1.12353589]
[1751284213058,0.26581017,654.99,654.2,1.866]
[1751284213358,0.26581017,654.99,654.21,1.12353594]
[1751284213561,0.26581017,654.99,654.22,1.12353594]
[1751284213761,0.26581017,654.99,654.23,1.12353594]
[1751284213962,0.26581017,654.99,654.24,1.12353594]
[1751284214160,0.26581017,654.99,654.25,1.12353594]
[1751284214358,0.26581017,654.99,654.26,1.12353594]
[1751284214560,0.26581017,654.99,654.27,1.12353594]
[1751284214760,0.26581017,654.99,654.28,1.12353594]
[1751284214964,0.26581017,654.99,654.2,1.866]
[1751284214965,0.26581017,654.99,654.29,1.12353594]
[1751284215265,0.26581017,654.99,654.3,1.12353594]
[1751284215465,0.26581017,654.99,654.31,1.12353594]
[1751284215760,0.26581017,654.99,654.32,1.12353594]
[1751284215959,0.26581017,654.99,654.33,1.12353594]
[1751284216160,0.26581017,654.99,654.34,1.12353594]
[1751284216360,0.26581017,654.99,654.35,1.12353594]
[1751284216558,0.26581017,654.99,654.2,1.866]
[1751284216758,0.26581017,654.99,654.21,1.1235357]
[1751284216963,0.26581017,654.99,654.22,1.1235357]
[1751284217160,0.26581017,654.99,654.23,1.1235357]
[1751284217364,0.26581017,654.99,654.24,1.1235357]
[1751284217561,0.26581017,654.99,654.25,1.1235357]
[1751284217766,0.26581017,654.99,654.26,1.1235357]
[1751284217962,0.26581017,654.99,654.27,1.1235357]
[1751284218168,0.26581017,654.99,654.28,1.1235357]
[1751284218464,0.26581017,654.99,654.29,1.1235357]
[1751284218663,0.26581017,654.99,654.3,1.1235357]
[1751284218866,0.26581017,654.99,654.31,1.1235357]
[1751284219067,0.26581017,654.99,654.32,1.1235357]
[1751284219264,0.26581017,654.99,654.33,1.1235357]
[1751284219464,0.26581017,654.99,654.34,1.1235357]
[1751284219668,0.26581017,654.99,654.35,1.1235357]
[1751284219968,0.26581017,654.99,654.2,1.866]
[1751284220164,0.26581017,654.99,654.21,1.1235359]
[1751284220364,0.26581017,654.99,654.22,1.1235359]
[1751284220568,0.26581017,654.99,654.23,1.1235359]
[1751284220865,0.26581017,654.99,654.24,1.1235359]
[1751284221064,0.26581017,654.99,654.25,1.1235359]
[1751284221365,0.26581017,654.99,654.26,1.1235359]
[1751284221568,0.26581017,654.99,654.27,1.1235359]
[1751284221865,0.26581017,654.99,654.28,1.1235359]
[1751284222064,0.26581017,654.99,654.29,1.1235359]
[1751284222269,0.26581017,654.99,654.3,1.1235359]
[1751284222562,0.26581017,654.99,654.31,1.1235359]
[1751284222764,0.26581017,654.99,654.32,1.1235359]
[1751284222963,0.26581017,654.99,654.33,1.1235359]
[1751284223166,0.26581017,654.99,654.34,1.1235359]
[1751284223365,0.26581017,654.99,654.35,1.1235359]
[1751284223568,0.26581017,654.99,654.2,1.866]
[1751284223768,0.26581017,654.99,654.21,1.1235357]
[1751284224064,0.26581017,654.99,654.22,1.1235357]
[1751284224265,0.26581017,654.99,654.23,1.1235357]
[1751284224468,0.26581017,654.99,654.24,1.1235357]
[1751284224664,0.26581017,654.99,654.25,1.1235357]
[1751284224868,0.26581017,654.99,654.26,1.1235357]
[1751284225063,0.26581017,654.99,654.27,1.1235357]
[1751284225264,0.26581017,654.99,654.28,1.1235357]
[1751284225469,0.26581017,654.99,654.29,1.1235357]
[1751284225663,0.26581017,654.99,654.3,1.1235357]
[1751284225866,0.26581017,654.99,654.31,1.1235357]
[1751284226066,0.26581017,654.99,654.32,1.1235357]
[1751284226269,0.26581017,654.99,654.33,1.1235357]
[1751284226466,0.26581017,654.99,654.34,1.1235357]
[1751284226769,0.26581017,654.99,654.35,1.1235357]
[1751284226970,0.26581017,654.99,654.2,1.866]
[1751284227270,0.26581017,654.99,654.21,1.1235359]
[1751284227468,0.26581017,654.99,654.22,1.1235359]
[1751284227664,0.26581017,654.99,654.23,1.1235359]
[1751284227966,0.26581017,654.99,654.24,1.1235359]
[1751284228165,0.26581017,654.99,654.25,1.1235359]
[1751284228364,0.26581017,654.99,654.26,1.1235359]
[1751284228564,0.26581017,654.99,654.27,1.1235359]
[1751284228765,0.26581017,654.99,654.28,1.1235359]
[1751284229066,0.26581017,654.99,654.2,1.866]
[1751284229067,0.26581017,654.99,654.29,1.1235359]
[1751284229366,0.26581017,654.99,654.3,1.1235359]
[1751284229569,0.26581017,654.99,654.31,1.1235359]
[1751284229766,0.26581017,654.99,654.32,1.1235359]
[1751284229965,0.26581017,654.99,654.33,1.1235359]
[1751284230269,0.26581017,654.99,654.34,1.1235359]
[1751284230468,0.26581017,654.99,654.35,1.1235359]
[1751284230670,0.26581017,654.99,654.36,1.1235359]
[1751284230966,0.26581017,654.99,654.2,1.866]
[1751284231166,0.26581017,654.99,654.21,1.1232931]
[1751284231365,0.26581017,654.99,654.2,1.866]
[1751284231366,0.26581017,654.99,654.22,1.1232931]
[1751284231566,0.26581017,654.99,654.23,1.1232931]
[1751284231767,0.26581017,654.99,654.24,1.1232931]
[1751284231966,0.26581017,654.99,654.25,1.1232931]
[1751284232169,0.26581017,654.99,654.26,1.1232931]
[1751284232366,0.26581017,654.99,654.27,1.1232931]
[1751284232570,0.26581017,654.99,654.28,1.1232931]
[1751284232770,0.26581017,654.99,654.29,1.1232931]
[1751284233067,0.26581017,654.99,654.3,1.1232931]
[1751284233364,0.26581017,654.99,654.31,1.1232931]
[1751284233566,0.26581017,654.99,654.32,1.1232931]
[1751284233768,0.26581017,654.99,654.2,1.866]
[1751284233769,0.26581017,654.99,654.33,1.1232931]
[1751284233968,0.26581017,654.99,654.34,1.1232931]
[1751284234171,0.26581017,654.99,654.35,1.1232931]
[1751284234471,0.26581017,654.99,654.36,1.1232931]
[1751284234667,0.26581017,654.99,654.2,1.866]
[1751284234871,0.26581017,654.99,654.21,1.1232902]
[1751284235070,0.26581017,654.99,654.22,1.1232902]
[1751284235268,0.26581017,654.99,654.23,1.1232902]
[1751284235470,0.26581017,654.99,654.24,1.1232902]
[1751284235770,0.26581017,654.99,654.25,1.1232902]
[1751284235971,0.26581017,654.99,654.26,1.1232902]
[1751284236171,0.26581017,654.99,654.27,1.1232902]
[1751284236367,0.26581017,654.99,654.28,1.1232902]
[1751284236572,0.26581017,654.99,654.29,1.1232902]
[1751284236871,0.26581017,654.99,654.3,1.1232902]
[1751284237068,0.26581017,654.99,654.31,1.1232902]
[1751284237271,0.26581017,654.99,654.32,1.1232902]
[1751284237468,0.26581017,654.99,654.33,1.1232902]
[1751284237672,0.26581017,654.99,654.34,1.1232902]
[1751284237868,0.26581017,654.99,654.35,1.1232902]
[1751284238073,0.26581017,654.99,654.36,1.1232902]
[1751284238369,0.26581017,654.99,654.2,1.866]
[1751284238570,0.26581017,654.99,654.21,1.1232885]
[1751284238769,0.26581017,654.99,654.22,1.1232885]
[1751284239070,0.26581017,654.99,654.23,1.1232885]
[1751284239269,0.26581017,654.99,654.24,1.1232885]
[1751284239469,0.26581017,654.99,654.25,1.1232885]
[1751284239674,0.26581017,654.99,654.26,1.1232885]
[1751284239870,0.26581017,654.99,654.27,1.1232885]
[1751284240070,0.26581017,654.99,654.28,1.1232885]
[1751284240274,0.26581017,654.99,654.29,1.1232885]
[1751284240476,0.26581017,654.99,654.3,1.1232885]
[1751284240676,0.26581017,654.99,654.31,1.1232885]
[1751284240876,0.26581017,654.99,654.32,1.1232885]
[1751284241176,0.26581017,654.99,654.33,1.1232885]
[1751284241377,0.26581017,654.99,654.34,1.1232885]
[1751284241575,0.26581017,654.99,654.35,1.1232885]
[1751284241776,0.26581017,654.99,654.36,1.1232885]
[1751284242074,0.26581017,654.99,654.2,1.866]
[1751284242274,0.26581017,654.99,654.21,1.1232869]
[1751284242476,0.26581017,654.99,654.22,1.1232869]
[1751284242672,0.26581017,654.99,654.23,1.1232869]
[1751284242871,0.26581017,654.99,654.24,1.1232869]
[1751284243074,0.26581017,654.99,654.25,1.1232869]
[1751284243273,0.26581017,654.99,654.26,1.1232869]